bitfinex/quotes_SOLUSD_20250414
["timestamp","ask_amount","ask_price","bid_price","bid_amount"]
[1744641597147,37.97233661,133.86,133.77,7.4755]
[1744641597350,37.97233661,133.86,133.77,45.44783661]
[1744641597563,37.97233661,133.81,133.76,52.05663661]
[1744641597771,37.97233661,133.81,133.76,14.0843]
[1744641597968,37.97233661,133.86,133.76,52.05663661]
[1744641598149,7.96,133.88,133.81,37.97233661]
[1744641598355,37.97233661,133.87,133.81,37.97233661]
[1744641598555,37.97233661,133.86,133.81,37.97233661]
[1744641598751,7.4677,133.91,133.82,37.97233661]
[1744641598971,233.18,133.92,133.85,37.97233661]
[1744641599351,240.6472,133.92,133.84,37.97233661]
[1744641599556,278.61953661,133.92,133.83,37.97233661]
[1744641599769,37.97233661,133.87,133.79,7.96]
[1744641599967,0.14216157,133.91,133.82,37.97233661]
[1744641600247,278.61953661,133.92,133.83,37.97233661]
[1744641600447,37.97233661,133.89,133.84,37.97233661]
[1744641600674,37.97233661,133.85,133.82,1.0]
[1744641600863,37.97233661,133.83,133.82,1.0]
[1744641602049,76.08683479,133.83,133.82,1.0]
[1744641602257,37.97233661,133.83,133.82,1.0]
[1744641602470,37.97233661,133.86,133.82,1.0]
[1744641602770,37.97233661,133.83,133.82,1.0]
[1744641602975,46.21233661,133.83,133.82,1.0]
[1744641603360,84.32683479,133.83,133.82,1.0]
[1744641603869,103.26080679,133.83,133.82,1.0]
[1744641604061,8.38216157,133.83,133.82,1.0]
[1744641604377,7.4738,133.8,133.74,1.0]
[1744641604686,64.13073661,133.8,133.74,1.0]
[1744641604986,75.94467322,133.75,133.74,1.0]
[1744641605153,26.14216157,133.71,133.59,8.24]
[1744641605355,37.97233661,133.68,133.59,45.45783661]
[1744641605553,37.97233661,133.68,133.63,37.97233661]
[1744641605774,0.14216157,133.72,133.6,37.97233661]
[1744641605775,37.97233661,133.66,133.6,37.97233661]
[1744641605953,0.14216157,133.72,133.59,7.4855]
[1744641605954,37.97233661,133.67,133.62,37.97233661]
[1744641606154,8.24,133.75,133.66,37.97233661]
[1744641606374,37.97233661,133.71,133.66,37.97233661]
[1744641606577,8.38216157,133.79,133.65,18.79181043]
[1744641606749,37.97233661,133.77,133.72,37.97233661]
[1744641606954,8.24,133.79,133.72,37.97233661]
[1744641606955,15.7145,133.79,133.72,37.97233661]
[1744641607155,37.97233661,133.73,133.66,0.14216157]
[1744641607364,37.97233661,133.73,133.68,37.97233661]
[1744641607579,37.97233661,133.73,133.65,26.88964886]
[1744641607580,37.97233661,133.73,133.65,8.24]
[1744641607779,37.97233661,133.73,133.68,37.97233661]
[1744641607986,37.97233661,133.74,133.65,8.24]
[1744641608177,19.21829514,133.78,133.67,37.97233661]
[1744641608364,8.24,133.79,133.66,7.4816]
[1744641608567,37.97233661,133.77,133.72,37.97233661]
[1744641608770,37.97233661,133.78,133.72,37.97233661]
[1744641608969,7.4721,133.83,133.76,37.97233661]
[1744641609211,37.97233661,133.81,133.76,37.97233661]
[1744641609488,0.28432314,133.81,133.67,0.14216157]
[1744641609792,37.97233661,133.78,133.73,37.97233661]
[1744641609993,38.11449818,133.8,133.66,26.32786157]
[1744641610169,37.97233661,133.75,133.69,37.97233661]
[1744641610370,7.4753,133.78,133.68,37.97233661]
[1744641610592,8.24,133.79,133.73,37.97233661]
[1744641610887,0.14216157,133.83,133.75,37.97233661]
[1744641611091,0.14216157,133.83,133.69,27.173972]
[1744641611092,37.97233661,133.82,133.76,37.97233661]
[1744641611284,37.97233661,133.8,133.69,27.03181043]
[1744641611588,7.61426157,133.83,133.69,27.03181043]
[1744641611793,37.97233661,133.79,133.74,37.97233661]
[1744641611961,37.97233661,133.8,133.74,37.97233661]
[1744641612165,37.97233661,133.79,133.74,37.97233661]
[1744641612378,7.61426157,133.83,133.72,37.97233661]
[1744641612379,37.97233661,133.77,133.72,37.97233661]
[1744641612584,37.97233661,133.78,133.73,37.97233661]
[1744641613192,7.4732,133.81,133.73,37.97233661]
[1744641613391,7.4732,133.81,133.74,37.97233661]
[1744641613595,8.24,133.84,133.74,37.97233661]
[1744641613792,37.97233661,133.83,133.77,37.97233661]
[1744641614001,37.97233661,133.8,133.75,37.97233661]
[1744641614167,37.97233661,133.78,133.72,7.4782]
[1744641614368,37.97233661,133.78,133.72,45.45053661]
[1744641614690,7.4743,133.8,133.72,45.45053661]
[1744641614873,8.24,133.79,133.69,0.14216157]
[1744641615074,37.97233661,133.7,133.64,8.0424]
[1744641615287,37.97233661,133.65,133.64,1.573]
[1744641615596,37.97233661,133.65,133.58,44.57753661]
[1744641615901,37.97233661,133.6,133.59,1.063]
[1744641616902,45.45733661,133.6,133.59,1.063]
[1744641617374,64.24914704,133.6,133.59,1.063]
[1744641617582,64.53347018,133.6,133.59,1.063]
[1744641618295,0.14216157,133.58,133.46,44.04913661]
[1744641618469,0.14216157,133.58,133.48,37.97233661]
[1744641618666,37.97233661,133.54,133.49,37.97233661]
[1744641618866,37.97233661,133.53,133.48,37.97233661]
[1744641619198,37.97233661,133.49,133.44,39.59953661]
[1744641619385,37.97233661,133.48,133.44,1.6272]
[1744641619991,37.97233661,133.48,133.4,6.0008]
[1744641620291,0.14216157,133.47,133.39,0.063]
[1744641620501,37.97233661,133.41,133.39,0.063]
[1744641620703,45.46633661,133.44,133.39,0.063]
[1744641620920,7.4935,133.45,133.39,0.063]
[1744641621195,37.97233661,133.4,133.39,0.063]
[1744641621574,38.11449818,133.44,133.39,0.063]
[1744641621770,37.97233661,133.4,133.39,0.063]
[1744641622095,38.11449818,133.4,133.39,0.063]
[1744641622294,95.02080679,133.4,133.39,0.063]
[1744641622599,83.58303479,133.4,133.39,0.063]
[1744641622777,0.14216157,133.38,133.3,1.5423]
[1744641622973,26.52112314,133.4,133.31,37.97233661]
[1744641623172,37.97233661,133.36,133.3,1.5423]
[1744641623393,19.07613357,133.39,133.28,0.063]
[1744641623593,37.97233661,133.38,133.28,38.03533661]
[1744641623898,37.97233661,133.33,133.28,38.03533661]
[1744641624275,0.14216157,133.37,133.28,0.063]
[1744641624474,37.97233661,133.32,133.28,0.063]
[1744641624677,37.97233661,133.34,133.29,37.97233661]
[1744641624990,18.88786157,133.37,133.29,37.97233661]
[1744641624991,7.4985,133.36,133.29,37.97233661]
[1744641625196,37.97233661,133.36,133.31,37.97233661]
[1744641625408,37.97233661,133.35,133.28,0.063]
[1744641625588,7.4968,133.39,133.28,0.063]
[1744641625784,37.97233661,133.37,133.32,37.97233661]
[1744641626189,7.4945,133.43,133.34,37.97233661]
[1744641626397,37.97233661,133.39,133.34,37.97233661]
[1744641626701,7.494,133.44,133.37,37.97233661]
[1744641626876,37.97233661,133.44,133.39,37.97233661]
[1744641627275,7.4925,133.47,133.36,8.56]
[1744641627276,37.97233661,133.43,133.38,37.97233661]
[1744641627901,37.97233661,133.44,133.39,37.97233661]
[1744641628601,37.97233661,133.43,133.37,7.4979]
[1744641628803,37.97233661,133.43,133.39,37.97233661]
[1744641629001,37.97233661,133.44,133.38,0.14216157]
[1744641629212,7.4911,133.49,133.37,7.4979]
[1744641629394,37.97233661,133.43,133.38,37.97233661]
[1744641629589,37.97233661,133.42,133.37,45.47023661]
[1744641629784,37.97233661,133.41,133.36,8.56]
[1744641629985,37.97233661,133.37,133.29,1.80786157]
[1744641630181,37.97233661,133.36,133.31,37.97233661]
[1744641630603,18.79181043,133.43,133.3,8.56]
[1744641630604,37.97233661,133.35,133.3,8.56]
[1744641631009,18.79181043,133.43,133.32,37.97233661]
[1744641631010,0.14216157,133.43,133.32,37.97233661]
[1744641631196,37.97233661,133.37,133.3,8.70216157]
[1744641631384,37.97233661,133.36,133.31,45.47363661]
[1744641631879,37.97233661,133.38,133.33,37.97233661]
[1744641632408,7.4951,133.42,133.33,37.97233661]
[1744641632575,37.97233661,133.38,133.33,37.97233661]
[1744641633383,37.97233661,133.37,133.31,26.2545]
[1744641633584,37.97233661,133.44,133.33,18.64964886]
[1744641633901,37.97233661,133.41,133.35,37.97233661]
[1744641634112,37.97233661,133.42,133.36,37.97233661]
[1744641634299,37.97233661,133.5,133.41,37.97233661]
[1744641634482,7.4907,133.5,133.43,37.97233661]
[1744641634802,7.4907,133.5,133.38,37.97233661]
[1744641634803,45.46303661,133.5,133.42,37.97233661]
[1744641634985,37.97233661,133.47,133.38,37.97233661]
[1744641635191,37.97233661,133.46,133.41,37.97233661]
[1744641635599,37.97233661,133.46,133.41,7.4955]
[1744641635901,37.97233661,133.43,133.37,27.3045]
[1744641636094,37.97233661,133.42,133.37,8.56]
[1744641636295,37.97233661,133.42,133.35,7.499]
[1744641636496,37.97233661,133.41,133.36,37.97233661]
[1744641636696,37.97233661,133.42,133.36,37.97233661]
[1744641636909,37.97233661,133.45,133.35,26.38876157]
[1744641637090,37.97233661,133.45,133.36,0.14216157]
[1744641637295,37.97233661,133.44,133.39,37.97233661]
[1744641637811,7.4913,133.49,133.4,7.4962]
[1744641637999,82.9,133.51,133.4,7.4962]
[1744641638000,37.97233661,133.48,133.43,37.97233661]
[1744641638301,37.97233661,133.5,133.45,37.97233661]
[1744641638679,37.97233661,133.49,133.44,37.97233661]
[1744641639098,37.97233661,133.49,133.41,0.14216157]
[1744641639292,37.97233661,133.49,133.44,37.97233661]
[1744641639608,7.4902,133.51,133.45,7.4934]
[1744641639810,0.14216157,133.54,133.45,45.46573661]
[1744641639994,37.97233661,133.49,133.44,45.46613661]
[1744641641615,37.97233661,133.5,133.45,37.97233661]
[1744641641792,37.97233661,133.5,133.45,45.46553661]
[1744641641994,0.14216157,133.54,133.45,7.4932]
[1744641642313,37.97233661,133.49,133.45,7.4932]
[1744641642812,37.97233661,133.51,133.46,37.97233661]
[1744641643114,37.97233661,133.49,133.45,7.4932]
[1744641643316,37.97233661,133.48,133.41,7.4956]
[1744641643609,37.97233661,133.46,133.41,45.46793661]
[1744641644409,37.97233661,133.42,133.4,1.6307]
[1744641644788,0.14216157,133.47,133.4,1.6307]
[1744641644982,0.14216157,133.47,133.45,1.0]
[1744641645717,7.4928,133.46,133.45,1.0]
[1744641646106,45.46513661,133.46,133.45,1.0]
[1744641646491,45.60729818,133.46,133.45,1.0]
[1744641646806,102.51360679,133.46,133.45,1.0]
[1744641648012,0.14216157,133.45,133.35,22.5103]
[1744641648216,37.97233661,133.39,133.35,13.9503]
[1744641648419,37.97233661,133.39,133.35,51.92263661]
[1744641648594,46.53233661,133.44,133.36,37.97233661]
[1744641648595,37.97233661,133.4,133.36,37.97233661]
[1744641648796,37.97233661,133.41,133.36,37.97233661]
[1744641649001,37.97233661,133.41,133.35,13.9503]
[1744641649002,37.97233661,133.4,133.35,51.92263661]
[1744641649227,37.97233661,133.39,133.35,51.92263661]
[1744641649518,37.97233661,133.39,133.35,13.9503]
[1744641650408,37.97233661,133.39,133.35,51.92263661]
[1744641650623,37.97233661,133.38,133.35,6.4515]
[1744641650800,37.97233661,133.39,133.34,47.10313661]
[1744641651001,37.97233661,133.38,133.34,9.1308]
[1744641651395,37.97233661,133.37,133.34,1.6313]
[1744641651611,37.97233661,133.37,133.33,7.5001]
[1744641651612,37.97233661,133.35,133.31,6.363]
[1744641651918,37.97233661,133.37,133.32,37.97233661]
[1744641652291,82.9,133.43,133.36,37.97233661]
[1744641652496,0.14216157,133.46,133.39,37.97233661]
[1744641652714,37.97233661,133.44,133.39,37.97233661]
[1744641652998,37.97233661,133.43,133.38,37.97233661]
[1744641653198,37.97233661,133.44,133.35,26.0]
[1744641653418,37.97233661,133.42,133.37,37.97233661]
[1744641653618,37.97233661,133.42,133.34,0.14216157]
[1744641653800,37.97233661,133.42,133.36,37.97233661]
[1744641654293,37.97233661,133.39,133.34,37.97233661]
[1744641655193,37.97233661,133.4,133.35,37.97233661]
[1744641655392,37.97233661,133.41,133.36,37.97233661]
[1744641655614,7.4932,133.46,133.39,37.97233661]
[1744641655812,37.97233661,133.42,133.37,37.97233661]
[1744641656020,37.97233661,133.4,133.33,63.7514]
[1744641656193,37.97233661,133.4,133.35,37.97233661]
[1744641656618,37.97233661,133.41,133.36,37.97233661]
[1744641656825,37.97233661,133.43,133.38,37.97233661]
[1744641657224,37.97233661,133.43,133.39,7.4968]
[1744641657602,7.4937,133.45,133.39,7.4968]
[1744641657920,37.97233661,133.43,133.39,7.4968]
[1744641658931,37.97233661,133.42,133.39,7.4968]
[1744641659133,37.97233661,133.42,133.38,26.2406]
[1744641659521,37.97233661,133.43,133.38,64.21293661]
[1744641659817,37.97233661,133.43,133.38,26.2406]
[1744641660018,7.4931,133.46,133.37,7.4976]
[1744641660019,37.97233661,133.4,133.37,7.4976]
[1744641660224,0.42648471,133.45,133.37,45.46993661]
[1744641660225,37.97233661,133.42,133.37,45.46993661]
[1744641660620,37.97233661,133.42,133.37,7.4976]
[1744641660806,37.97233661,133.43,133.38,37.97233661]
[1744641661204,82.9,133.5,133.42,37.97233661]
[1744641661414,37.97233661,133.49,133.44,37.97233661]
[1744641661622,37.97233661,133.5,133.45,37.97233661]
[1744641661910,0.03,133.52,133.48,37.97233661]
[1744641662109,0.03,133.52,133.48,26.0]
[1744641662321,0.03,133.52,133.51,37.97233661]
[1744641662528,0.03,133.52,133.49,37.97233661]
[1744641662840,0.03,133.52,133.5,37.97233661]
[1744641663335,0.03,133.52,133.51,7.49]
[1744641663520,0.03,133.52,133.51,45.46233661]
[1744641664121,0.03,133.52,133.47,7.4923]
[1744641664333,0.03,133.52,133.47,26.2231]
[1744641664532,0.03,133.52,133.48,37.97233661]
[1744641665036,38.00233661,133.52,133.47,45.46463661]
[1744641665434,38.00233661,133.52,133.46,45.46513661]
[1744641665435,37.97233661,133.51,133.46,45.46513661]
[1744641665637,38.00233661,133.52,133.47,37.97233661]
[1744641665843,0.03,133.52,133.48,37.97233661]
[1744641666231,0.03,133.52,133.46,26.225]
[1744641666540,0.03,133.52,133.51,37.97233661]
[1744641666736,0.03,133.52,133.49,37.97233661]
[1744641666939,37.97233661,133.51,133.46,7.4928]
[1744641667144,0.03,133.52,133.49,37.97233661]
[1744641667359,0.03,133.52,133.45,1.5082]
[1744641667360,0.03,133.52,133.51,45.46233661]
[1744641667515,0.03,133.52,133.51,51.53383661]
[1744641667716,82.9,133.58,133.51,51.67599818]
[1744641667916,8.44,133.64,133.51,51.67599818]
[1744641667917,82.9,133.63,133.57,37.97233661]
[1744641668117,82.9,133.63,133.59,37.97233661]
[1744641668422,120.87233661,133.63,133.58,37.97233661]
[1744641668823,82.9,133.69,133.62,37.97233661]
[1744641669023,37.97233661,133.66,133.61,37.97233661]
[1744641669229,37.97233661,133.65,133.57,18.79181043]
[1744641669445,37.97233661,133.67,133.62,37.97233661]
[1744641669641,37.97233661,133.66,133.62,37.97233661]
[1744641669837,37.97233661,133.67,133.62,37.97233661]
[1744641670035,90.3802,133.69,133.62,37.97233661]
[1744641670241,37.97233661,133.67,133.62,37.97233661]
[1744641670543,37.97233661,133.67,133.63,45.45563661]
[1744641670743,82.9,133.69,133.64,37.97233661]
[1744641670945,37.97233661,133.67,133.62,45.45603661]
[1744641671137,37.97233661,133.67,133.62,7.4837]
[1744641671328,90.38,133.69,133.64,37.97233661]
[1744641671329,120.87233661,133.69,133.64,37.97233661]
[1744641671526,82.9,133.69,133.64,37.97233661]
[1744641671728,120.87233661,133.73,133.68,37.97233661]
[1744641671951,82.9,133.73,133.69,37.97233661]
[1744641672137,37.97233661,133.77,133.72,37.97233661]
[1744641672347,37.97233661,133.76,133.72,37.97233661]
[1744641672536,37.97233661,133.76,133.71,37.97233661]
[1744641672731,37.97233661,133.74,133.68,7.4803]
[1744641673052,37.97233661,133.74,133.65,20.2976]
[1744641673053,0.14216157,133.73,133.65,1.593]
[1744641673224,37.97233661,133.69,133.65,1.593]
[1744641674046,37.97233661,133.69,133.65,9.075]
[1744641674254,37.97233661,133.67,133.65,1.593]
[1744641674554,37.97233661,133.69,133.65,1.593]
[1744641675252,37.97233661,133.69,133.65,9.075]
[1744641675432,37.97233661,133.68,133.65,1.593]
[1744641675633,37.97233661,133.69,133.65,1.593]
[1744641675954,37.97233661,133.68,133.65,1.593]
[1744641676152,7.4783,133.72,133.65,9.0751]
[1744641676334,37.97233661,133.7,133.65,47.04743661]
[1744641676528,37.97233661,133.71,133.66,37.97233661]
[1744641676774,82.9,133.8,133.73,26.0]
[1744641676951,82.9,133.8,133.76,37.97233661]
[1744641677151,120.87233661,133.79,133.74,37.97233661]
[1744641677451,37.97233661,133.78,133.73,37.97233661]
[1744641677630,37.97233661,133.8,133.75,37.97233661]
[1744641677939,37.97233661,133.8,133.71,6.22]
[1744641677940,37.97233661,133.81,133.76,37.97233661]
[1744641678129,37.97233661,133.79,133.74,37.97233661]
[1744641678333,37.97233661,133.78,133.73,37.97233661]
[1744641678550,37.97233661,133.78,133.74,7.4771]
[1744641678733,37.97233661,133.79,133.74,45.44943661]
[1744641679632,37.97233661,133.77,133.73,7.4775]
[1744641679836,37.97233661,133.78,133.73,45.44983661]
[1744641680645,37.97233661,133.79,133.74,37.97233661]
[1744641680961,37.97233661,133.78,133.74,37.97233661]
[1744641681161,0.14216157,133.81,133.73,45.44983661]
[1744641681455,37.97233661,133.8,133.75,37.97233661]
[1744641681636,37.97233661,133.81,133.76,37.97233661]
[1744641681843,37.97233661,133.8,133.75,37.97233661]
[1744641682057,37.97233661,133.79,133.73,7.4775]
[1744641682239,37.97233661,133.77,133.72,53.89033661]
[1744641682832,37.97233661,133.76,133.72,7.478]
[1744641683034,26.1642,133.77,133.69,7.4796]
[1744641683259,0.14216157,133.76,133.69,7.4796]
[1744641683439,37.97233661,133.72,133.68,7.4803]
[1744641684338,37.97233661,133.71,133.66,6.3179]
[1744641684538,37.97233661,133.71,133.66,44.29023661]
[1744641684766,37.97233661,133.7,133.66,13.7993]
[1744641684939,37.97233661,133.71,133.66,51.77163661]
[1744641685958,37.97233661,133.7,133.66,6.3179]
[1744641686161,7.4789,133.71,133.66,13.7995]
[1744641686361,37.97233661,133.7,133.66,6.3179]
[1744641686536,7.4789,133.71,133.66,6.3179]
[1744641686737,37.97233661,133.7,133.66,13.7994]
[1744641686964,45.45173661,133.7,133.66,6.3179]
[1744641687139,37.97233661,133.69,133.65,17.395]
[1744641687349,37.97233661,133.67,133.62,37.97233661]
[1744641687538,82.9,133.69,133.65,37.97233661]
[1744641687843,37.97233661,133.68,133.62,45.45623661]
[1744641688047,37.97233661,133.67,133.62,45.45623661]
[1744641688567,82.9,133.69,133.61,26.09998704]
[1744641688568,37.97233661,133.65,133.61,25.26418704]
[1744641688751,37.97233661,133.64,133.61,25.26418704]
[1744641688944,37.97233661,133.64,133.61,11.41748704]
[1744641689148,37.97233661,133.63,133.61,11.41748704]
[1744641689346,37.97233661,133.62,133.6,1.552]
[1744641689547,37.97233661,133.63,133.6,9.0369]
[1744641689761,7.4811,133.67,133.6,47.00923661]
[1744641689762,37.97233661,133.65,133.6,47.00923661]
[1744641690068,7.4807,133.68,133.62,37.97233661]
[1744641690254,37.97233661,133.67,133.62,37.97233661]
[1744641690658,37.97233661,133.66,133.61,37.97233661]
[1744641690971,37.97233661,133.66,133.61,46.45663661]
[1744641691463,37.97233661,133.68,133.63,37.97233661]
[1744641691670,82.9,133.69,133.66,37.97233661]
[1744641691855,37.97233661,133.71,133.66,37.97233661]
[1744641692180,37.97233661,133.67,133.61,8.4843]
[1744641692352,37.97233661,133.62,133.61,1.0]
[1744641692866,45.45623661,133.62,133.61,1.0]
[1744641693063,83.57073479,133.62,133.61,1.0]
[1744641694076,37.97233661,133.62,133.61,1.0]
[1744641694654,75.94467322,133.62,133.61,1.0]
[1744641694853,45.45623661,133.62,133.61,1.0]
[1744641695282,18.84816157,133.65,133.61,1.0]
[1744641695447,37.97233661,133.64,133.61,1.0]
[1744641695652,37.97233661,133.66,133.61,46.45663661]
[1744641696179,37.97233661,133.65,133.61,1.0]
[1744641696378,37.97233661,133.64,133.61,1.0]
[1744641696859,37.97233661,133.65,133.61,1.0]
[1744641697372,37.97233661,133.66,133.61,8.4844]
[1744641697791,37.97233661,133.65,133.61,8.4844]
[1744641698571,37.97233661,133.63,133.61,1.0]
[1744641698773,37.97233661,133.64,133.61,1.0]
[1744641699154,45.45473661,133.65,133.61,1.0]
[1744641699874,82.9,133.72,133.64,37.97233661]
[1744641700056,82.9,133.72,133.7,37.97233661]
[1744641700254,82.9,133.72,133.71,37.97233661]
[1744641700566,120.87233661,133.77,133.71,37.97233661]
[1744641700872,120.87233661,133.77,133.73,7.4777]
[1744641701459,82.9,133.77,133.73,45.45003661]
[1744641701653,120.87233661,133.77,133.68,64.99263661]
[1744641701859,82.9,133.77,133.72,37.97233661]
[1744641702072,82.9,133.77,133.74,37.97233661]
[1744641702786,82.9,133.77,133.72,7.4783]
[1744641702964,82.9,133.77,133.74,37.97233661]
[1744641703365,82.9,133.77,133.73,37.97233661]
[1744641703866,82.9,133.77,133.74,37.97233661]
[1744641704061,82.9,133.81,133.75,37.97233661]
[1744641704268,37.97233661,133.8,133.75,37.97233661]
[1744641704481,37.97233661,133.79,133.74,37.97233661]
[1744641704672,37.97233661,133.78,133.72,26.174]
[1744641704877,37.97233661,133.78,133.73,37.97233661]
[1744641705062,82.9,133.81,133.73,37.97233661]
[1744641705378,37.97233661,133.76,133.72,7.4783]
[1744641705556,0.14216157,133.79,133.72,7.4783]
[1744641705557,37.97233661,133.75,133.72,7.4783]
[1744641705981,0.14216157,133.79,133.71,9.0888]
[1744641706176,37.97233661,133.75,133.71,9.0888]
[1744641706482,19.07613357,133.79,133.71,47.06113661]
[1744641706682,19.07613357,133.79,133.71,9.0888]
[1744641706983,37.97233661,133.75,133.71,9.0888]
[1744641707182,7.4749,133.78,133.71,9.0888]
[1744641707362,37.97233661,133.75,133.71,9.0888]
[1744641707558,128.34623661,133.8,133.71,65.75823661]
[1744641707877,120.87233661,133.8,133.75,37.97233661]
[1744641708060,37.97233661,133.81,133.75,37.97233661]
[1744641708261,37.97233661,133.78,133.73,46.29233661]
[1744641708483,37.97233661,133.77,133.73,8.32]
[1744641708697,37.97233661,133.77,133.72,37.97233661]
[1744641708985,7.4744,133.79,133.71,27.7859]
[1744641709194,7.4744,133.79,133.71,66.75823661]
[1744641709354,37.97233661,133.77,133.71,66.75823661]
[1744641709786,37.97233661,133.76,133.71,48.06113661]
[1744641710881,37.97233661,133.75,133.71,2.6102]
[1744641711088,37.97233661,133.73,133.71,2.6102]
[1744641711470,37.97233661,133.73,133.71,10.089]
[1744641711791,37.97233661,133.73,133.71,1.0]
[1744641711980,37.97233661,133.74,133.71,1.0]
[1744641712180,37.97233661,133.72,133.71,1.0]
[1744641713061,37.97233661,133.73,133.71,1.0]
[1744641713260,7.4772,133.74,133.71,1.0]
[1744641713558,0.03,133.82,133.73,37.97233661]
[1744641713783,0.14216157,133.8,133.71,35.3959]
[1744641713988,37.97233661,133.76,133.71,46.45113661]
[1744641714692,37.97233661,133.74,133.71,1.0]
[1744641714892,37.97233661,133.76,133.71,46.45103661]
[1744641715197,37.97233661,133.75,133.71,1.0]
[1744641715381,37.97233661,133.73,133.71,1.0]
[1744641715693,7.61706157,133.78,133.71,8.4788]
[1744641715898,37.97233661,133.75,133.71,8.4788]
[1744641716069,7.4749,133.78,133.71,8.4788]
[1744641716386,37.97233661,133.74,133.71,1.0]
[1744641716595,37.97233661,133.72,133.71,1.0]
[1744641716893,0.03,133.82,133.71,46.45113661]
[1744641717073,0.03,133.82,133.75,26.1681]
[1744641717391,0.03,133.82,133.78,37.97233661]
[1744641717574,0.03,133.82,133.75,26.1681]
[1744641717575,38.00233661,133.82,133.75,26.1681]
[1744641717780,38.00233661,133.82,133.77,37.97233661]
[1744641718076,37.97233661,133.8,133.75,7.4766]
[1744641718280,37.97233661,133.81,133.75,7.4766]
[1744641718589,38.00233661,133.82,133.77,37.97233661]
[1744641718774,0.03,133.82,133.78,37.97233661]
[1744641719304,37.97233661,133.8,133.75,56.66383661]
[1744641719862,37.97233661,133.81,133.76,37.97233661]
[1744641720068,0.03,133.82,133.77,37.97233661]
[1744641720069,38.00233661,133.82,133.77,37.97233661]
[1744641720296,0.03,133.82,133.79,37.97233661]
[1744641720672,0.0001,133.86,133.83,0.14216157]
[1744641721090,0.0001,133.86,133.82,7.7519]
[1744641721295,0.0001,133.86,133.83,26.1525]
[1744641721775,0.0001,133.86,133.85,37.97233661]
[1744641721978,82.9,133.93,133.83,26.1525]
[1744641722172,37.97233661,133.91,133.83,63.5133]
[1744641722371,37.97233661,133.91,133.86,37.97233661]
[1744641722586,8.22,133.95,133.83,63.65546157]
[1744641722772,37.97233661,133.93,133.88,37.97233661]
[1744641723097,37.97233661,133.94,133.89,37.97233661]
[1744641723277,37.97233661,133.93,133.89,7.4688]
[1744641723597,37.97233661,133.93,133.83,7.4721]
[1744641723598,120.87233661,133.92,133.83,7.4721]
[1744641723780,37.97233661,133.9,133.85,37.97233661]
[1744641723983,82.9,133.91,133.84,37.97233661]
[1744641724196,37.97233661,133.89,133.84,37.97233661]
[1744641724689,82.9,133.91,133.85,37.97233661]
[1744641724870,82.9,133.91,133.86,37.97233661]
[1744641724871,120.87233661,133.91,133.86,37.97233661]
[1744641725072,82.9,133.91,133.87,37.97233661]
[1744641725277,37.97233661,133.89,133.83,26.1525]
[1744641725505,37.97233661,133.89,133.84,37.97233661]
[1744641725704,37.97233661,133.85,133.83,7.4721]
[1744641725901,37.97233661,133.84,133.78,56.65853661]
[1744641726197,37.97233661,133.81,133.77,15.2547]
[1744641726403,37.97233661,133.86,133.77,53.22703661]
[1744641726588,37.97233661,133.81,133.77,15.2547]
[1744641726779,82.9,133.85,133.8,37.97233661]
[1744641727101,82.9,133.85,133.77,33.9434]
[1744641727286,37.97233661,133.84,133.79,37.97233661]
[1744641727905,37.97233661,133.82,133.77,53.22703661]
[1744641728075,37.97233661,133.8,133.77,7.7792]
[1744641728282,37.97233661,133.79,133.77,1.6621]
[1744641728480,37.97233661,133.78,133.73,6.3119]
[1744641728677,37.97233661,133.74,133.71,1.0]
[1744641728896,37.97233661,133.72,133.71,1.0]
[1744641729882,45.45063661,133.72,133.71,1.0]
[1744641730699,64.52677018,133.72,133.71,1.0]
[1744641730904,72.88893175,133.72,133.71,0.0001]
[1744641731092,0.28432314,133.7,133.69,0.063]
[1744641731293,7.62156157,133.7,133.69,0.063]
[1744641731492,45.59389818,133.7,133.69,0.063]
[1744641732399,82.9,133.74,133.69,0.063]
[1744641732704,37.97233661,133.71,133.69,0.063]
[1744641732882,37.97233661,133.7,133.69,0.063]
[1744641733287,64.52787018,133.7,133.69,0.063]
[1744641733584,0.42648471,133.69,133.6,52.06073661]
[1744641733797,37.97233661,133.65,133.6,52.06073661]
[1744641733979,37.97233661,133.65,133.6,7.4849]
[1744641734183,37.97233661,133.64,133.59,45.45773661]
[1744641735281,37.97233661,133.62,133.58,1.5746]